fUSD/lending_fUSD_20240630
["ID","MTS","AMOUNT","RATE_DAILY","PERIOD"]
[330742304,1719750641504,-500.0,0.00013986,3]
[330742305,1719750641514,-500.0,0.00013986,3]
[330742306,1719750641523,-835.06,0.00013986,3]
[330742307,1719750641533,-742.52,0.00013986,3]
[330742308,1719750641543,-500.0,0.00013986,3]
[330742309,1719750641552,-1037.2,0.00013986,3]
[330742310,1719750641561,-744.86,0.00013986,3]
[330742311,1719750641571,-311.27423828,0.00013986,3]
[330742319,1719750641950,475.49616812,0.00011199,2]
[330742320,1719750642424,-301.58268916,0.00012302,2]
[330742321,1719750642434,-2391.73259082,0.00013472,2]
[330742322,1719750642443,-1068.61472002,0.00013574,2]
[330742323,1719750642455,-718.87488019,0.00013574,2]
[330742324,1719750642785,-1148.88216403,0.00013574,2]
[330742325,1719750642795,-366.11090361,0.00013574,2]
[330742326,1719750642805,-500.0,0.00013985,3]
[330742327,1719750642821,-188.72576172,0.00013986,3]
[330742328,1719750642830,-550.38,0.00013986,3]
[330742329,1719750642841,-803.68,0.00013986,3]
[330742330,1719750642853,-826.36,0.00013986,3]
[330742331,1719750642864,-500.0,0.00013986,3]
[330742332,1719750642873,-500.0,0.00013986,3]
[330742333,1719750642882,-1210.24,0.00013986,3]
[330742334,1719750642894,-500.0,0.00013986,3]
[330742335,1719750642905,-572.33,0.00013986,3]
[330742336,1719750642916,-524.35,0.00013986,3]
[330742337,1719750642926,-500.0,0.00013986,3]
[330742338,1719750642937,-507.22,0.00013986,3]
[330742339,1719750642947,-500.50368209,0.00013986,3]
[330742340,1719750642957,-500.0,0.00013986,3]
[330742341,1719750642969,-500.0,0.00013986,3]
[330742342,1719750642979,-500.0,0.00013986,3]
[330742343,1719750642988,-500.0,0.00013986,3]
[330742344,1719750642998,-500.0,0.00013986,3]
[330742345,1719750643009,-600.54,0.00013986,3]
[330742346,1719750643020,-547.32,0.00013986,3]
[330742347,1719750643032,-864.33,0.00013986,3]
[330742348,1719750643043,-500.0,0.00013986,3]
[330742349,1719750643054,-1051.99,0.00013986,3]
[330742350,1719750643063,-778.77,0.00013986,3]
[330742351,1719750643074,-549.68,0.00013986,3]
[330742352,1719750643083,-633.51,0.00013986,3]
[330742353,1719750643092,-820.35,0.00013986,3]
[330742354,1719750643102,-880.68,0.00013986,3]
[330742355,1719750643112,-643.43,0.00013986,3]
[330742356,1719750643121,-799.49,0.00013986,3]
[330742357,1719750643130,-500.0,0.00013986,3]
[330742358,1719750643140,-536.82,0.00013986,3]
[330742359,1719750643150,-720.73,0.00013986,3]
[330742360,1719750643159,-765.79,0.00013986,3]
[330742361,1719750643169,-119.35004271,0.00013986,3]
[330742362,1719750643183,-517.60995729,0.00013986,3]
[330742364,1719750643192,-797.38,0.00013986,3]
[330742366,1719750643201,-500.0,0.00013986,3]
[330742367,1719750643211,-848.06,0.00013986,3]
[330742368,1719750643220,-1345.89,0.00013986,3]
[330742369,1719750643230,-500.0,0.00013986,3]
[330742370,1719750643240,-500.0,0.00013986,3]
[330742371,1719750643249,-590.45,0.00013986,3]
[330742372,1719750643259,-500.0,0.00013986,3]
[330742374,1719750643268,-912.57,0.00013986,3]
[330742376,1719750643277,-500.0,0.00013986,3]
[330742377,1719750643287,-500.0,0.00013986,3]
[330742378,1719750643297,-937.81,0.00013986,3]
[330742379,1719750643307,-689.64,0.00013986,3]
[330742380,1719750643316,-1028.77,0.00013986,3]
[330742381,1719750643325,-685.92,0.00013986,3]
[330742382,1719750643335,-877.24,0.00013986,3]
[330742383,1719750643345,-665.61,0.00013986,3]
[330742384,1719750643355,-547.71,0.00013986,3]
[330742385,1719750643364,-584.69,0.00013986,3]
[330742386,1719750643373,-704.97,0.00013986,3]
[330742387,1719750643384,-629.94,0.00013986,3]
[330742388,1719750643395,-698.02,0.00013986,3]
[330742390,1719750643405,-648.75,0.00013986,3]
[330742392,1719750643414,-500.0,0.00013986,3]
[330742393,1719750643423,-512.3,0.00013986,3]
[330742395,1719750643432,-900.62,0.00013986,3]
[330742397,1719750643441,-736.95,0.00013986,3]
[330742399,1719750643451,-500.0,0.00013986,3]
[330742402,1719750643460,-822.39346552,0.00013986,3]
[330742413,1719750644088,-210.15653448,0.00013986,3]
[330742414,1719750644098,-509.41,0.00013986,3]
[330742416,1719750644107,-552.19,0.00013986,3]
[330742418,1719750644116,-500.0,0.00013986,3]
[330742419,1719750644125,-324.86726552,0.00013986,3]
[330742421,1719750644136,-175.13273448,0.00013986,3]
[330742422,1719750644146,-611.89684392,0.00013986,3]
[330742423,1719750644280,-0.00891085,0.00013986,3]
[330742424,1719750644291,-358.25424523,0.00013986,3]
[330742425,1719750644300,-251.74575477,0.00013986,3]
[330742426,1719750644356,-467.99424523,0.00013986,3]
[330742427,1719750644365,-93.33447523,0.00013986,3]
[330742428,1719750646707,-500.0,0.00013984,3]
[330742429,1719750646717,-500.0,0.00013985,3]
[330742430,1719750646726,-406.66552477,0.00013986,3]
[330742431,1719750646736,-500.0,0.00013986,3]
[330742432,1719750646745,-500.0,0.00013986,3]
[330742433,1719750646754,-500.0,0.00013986,3]
[330742434,1719750646764,-223.29,0.00013986,3]
[330742435,1719750646773,-500.0,0.00013986,3]
[330742436,1719750646782,-500.0,0.00013986,3]
[330742437,1719750646791,-707.36,0.00013986,3]
[330742438,1719750646801,-500.0,0.00013986,3]
[330742440,1719750646815,-501.62,0.00013986,3]
[330742442,1719750646823,-500.0,0.00013986,3]
[330742443,1719750646832,-1440.67,0.00013986,3]
[330742445,1719750646843,-500.0,0.00013986,3]
[330742446,1719750646853,-500.0,0.00013986,3]
[330742447,1719750646864,-600.29,0.00013986,3]
[330742448,1719750646874,-562.91,0.00013986,3]
[330742449,1719750646883,-813.15,0.00013986,3]
[330742450,1719750646897,-713.28,0.00013986,3]
[330742451,1719750646906,-500.0,0.00013986,3]
[330742452,1719750646915,-500.0,0.00013987,3]
[330742453,1719750646925,-500.0,0.00013987,3]
[330742454,1719750646934,-619.95368602,0.00013987,3]
[330742455,1719750646944,-729.23,0.00013987,3]
[330742456,1719750646953,-500.0,0.00013987,3]
[330742458,1719750646962,-500.0,0.00013987,3]
[330742459,1719750646972,-500.0,0.00013987,3]
[330742460,1719750646981,-500.0,0.00013987,3]
[330742461,1719750646991,-500.0,0.00013987,3]
[330742462,1719750647000,-500.0,0.00013987,3]
[330742463,1719750647253,-500.0,0.00013987,3]
[330742464,1719750647264,-500.0,0.00013987,3]
[330742465,1719750647275,-500.0,0.00013987,3]
[330742466,1719750647286,-500.0,0.00013987,3]
[330742467,1719750647295,-500.0,0.00013987,3]
[330742468,1719750647305,-500.0,0.00013987,3]
[330742469,1719750647314,-500.0,0.00013987,3]
[330742470,1719750647324,-500.0,0.00013987,3]
[330742471,1719750647334,-500.0,0.00013987,3]
[330742472,1719750647343,-629.27121172,0.00013987,3]
[330742473,1719750647353,-500.0,0.00013987,3]
[330742474,1719750647363,-500.0,0.00013987,3]
[330742475,1719750647372,-521.41,0.00013987,3]
[330742476,1719750647381,-500.0,0.00013987,3]
[330742477,1719750647391,-500.0,0.00013987,3]
[330742478,1719750647401,-500.0,0.00013987,3]
[330742479,1719750647410,-500.0,0.00013987,3]
[330742480,1719750647419,-500.0,0.00013987,3]
[330742481,1719750647429,-500.0,0.00013987,3]
[330742482,1719750647438,-339.0243451,0.00013987,3]
[330742483,1719750647448,-571.06,0.00013987,3]
[330742484,1719750647457,-500.0,0.00013987,3]
[330742485,1719750647466,-500.0,0.00013987,3]
[330742486,1719750647476,-589.71,0.00013987,3]
[330742487,1719750647485,-537.96,0.00013987,3]
[330742488,1719750647494,-500.0,0.00013987,3]
[330742489,1719750647503,-500.0,0.00013987,3]
[330742490,1719750647512,-500.0,0.00013987,3]
[330742491,1719750647521,-500.0,0.00013987,3]
[330742492,1719750647531,-500.0,0.00013987,3]
[330742493,1719750647540,-500.0,0.00013987,3]
[330742494,1719750647550,-500.0,0.00013987,3]
[330742495,1719750647559,-500.0,0.00013987,3]
[330742496,1719750647570,-500.0,0.00013987,3]
[330742497,1719750647579,-500.0,0.00013987,3]
[330742498,1719750647589,-500.0,0.00013987,3]
[330742499,1719750647600,-500.0,0.00013987,3]
[330742500,1719750647610,-500.0,0.00013987,3]
[330742501,1719750647620,-528.51,0.00013987,3]
[330742502,1719750647629,-500.0,0.00013987,3]
[330742503,1719750647640,-718.64,0.00013987,3]
[330742504,1719750647650,-261.56,0.00013987,3]
[330742505,1719750647660,-500.0,0.00013987,3]
[330742506,1719750647670,-500.0,0.00013987,3]
[330742507,1719750647680,-500.0,0.00013987,3]
[330742508,1719750647690,-500.0,0.00013987,3]
[330742509,1719750647700,-500.0,0.00013987,3]
[330742510,1719750647710,-500.0,0.00013987,3]
[330742511,1719750647721,-500.0,0.00013987,3]
[330742512,1719750647730,-504.26,0.00013987,3]
[330742513,1719750647740,-500.0,0.00013987,3]
[330742514,1719750647751,-500.0,0.00013987,3]
[330742515,1719750647760,-557.92871781,0.00013987,3]
[330742516,1719750647770,-500.0,0.00013987,3]
[330742517,1719750647779,-500.0,0.00013987,3]
[330742518,1719750647789,-500.0,0.00013987,3]
[330742519,1719750647798,-500.0,0.00013987,3]
[330742520,1719750647807,-500.0,0.00013987,3]
[330742521,1719750647820,-588.09,0.00013987,3]
[330742522,1719750647829,-500.0,0.00013987,3]
[330742523,1719750647839,-500.0,0.00013987,3]
[330742524,1719750647849,-500.0,0.00013987,3]
[330742525,1719750647860,-337.39322114,0.00013987,3]
[330742526,1719750647870,-500.0,0.00013987,3]
[330742527,1719750647879,-304.59016264,0.00013987,3]
[330742528,1719750647888,-500.0,0.00013987,3]
[330742529,1719750647897,-500.0,0.00013987,3]
[330742530,1719750647906,-500.0,0.00013987,3]
[330742531,1719750647915,-199.97061391,0.00013987,3]
[330742532,1719750647924,-500.0,0.00013987,3]
[330742533,1719750647935,-500.0,0.00013987,3]
[330742534,1719750647945,-500.0,0.00013987,3]
[330742535,1719750647954,-199.97353058,0.00013987,3]
[330742536,1719750647964,-500.0,0.00013987,3]
[330742537,1719750647975,-500.0,0.00013987,3]
[330742538,1719750647984,-500.0,0.00013987,3]
[330742539,1719750647993,-500.0,0.00013987,3]
[330742540,1719750648002,-500.0,0.00013987,3]
[330742541,1719750648012,-500.0,0.00013987,3]
[330742542,1719750648021,-639.56,0.00013987,3]
[330742543,1719750648030,-500.0,0.00013987,3]
[330742544,1719750648039,-566.63,0.00013987,3]
[330742545,1719750648048,-500.0,0.00013987,3]
[330742546,1719750648057,-500.0,0.00013987,3]
[330742547,1719750648067,-500.0,0.00013987,3]
[330742548,1719750648076,-500.0,0.00013987,3]
[330742549,1719750648086,-500.0,0.00013987,3]
[330742550,1719750648095,-500.0,0.00013987,3]
[330742551,1719750648104,-500.0,0.00013987,3]
[330742552,1719750648113,-657.09,0.00013987,3]
[330742553,1719750648123,-500.0,0.00013987,3]
[330742554,1719750648132,-500.0,0.00013987,3]
[330742555,1719750648141,-500.0,0.00013987,3]
[330742556,1719750648150,-500.0,0.00013987,3]
[330742557,1719750648159,-500.0,0.00013987,3]
[330742558,1719750648168,-500.0,0.00013987,3]
[330742559,1719750648177,-500.0,0.00013987,3]
[330742560,1719750648187,-540.63,0.00013987,3]
[330742561,1719750648196,-302.10534635,0.00013987,2]
[330742562,1719750648205,-500.0,0.00013987,3]
[330742563,1719750648215,-574.82,0.00013987,3]
[330742564,1719750648224,-500.0,0.00013987,3]
[330742565,1719750648234,-500.0,0.00013987,3]
[330742566,1719750648244,-500.0,0.00013987,3]
[330742567,1719750648253,-567.9,0.00013987,3]
[330742568,1719750648263,-500.0,0.00013987,3]
[330742569,1719750648272,-500.0,0.00013987,3]
[330742570,1719750648282,-500.0,0.00013987,3]
[330742571,1719750648292,-500.0,0.00013987,3]
[330742572,1719750648301,-500.0,0.00013987,3]
[330742573,1719750648311,-500.0,0.00013987,3]
[330742574,1719750648320,-500.0,0.00013987,3]
[330742575,1719750648329,-500.0,0.00013987,3]
[330742576,1719750648339,-500.0,0.00013987,3]
[330742577,1719750648348,-496.69482243,0.00013987,3]
[330742578,1719750648357,-500.0,0.00013987,3]
[330742579,1719750648367,-500.0,0.00013987,3]
[330742580,1719750648377,-500.0,0.00013987,3]
[330742581,1719750648386,-500.0,0.00013987,3]
[330742582,1719750648396,-500.0,0.00013987,3]
[330742583,1719750648406,-500.0,0.00013987,3]
[330742584,1719750648416,-500.0,0.00013987,3]
[330742585,1719750648427,-500.0,0.00013987,3]
[330742586,1719750648437,-538.81,0.00013987,3]
[330742587,1719750648446,-500.0,0.00013987,3]
[330742588,1719750648455,-500.0,0.00013987,3]
[330742589,1719750648465,-500.0,0.00013987,3]
[330742590,1719750648475,-500.0,0.00013987,3]
[330742591,1719750648485,-616.3,0.00013987,3]
[330742592,1719750648495,-500.0,0.00013987,3]
[330742593,1719750648505,-523.83,0.00013987,3]
[330742594,1719750648514,-500.0,0.00013987,3]
[330742595,1719750648524,-500.0,0.00013987,3]
[330742596,1719750648534,-500.0,0.00013987,3]
[330742597,1719750648544,-500.0,0.00013987,3]
[330742598,1719750648555,-500.0,0.00013987,3]
[330742599,1719750648565,-500.0,0.00013987,3]
[330742600,1719750648575,-500.0,0.00013987,3]
[330742601,1719750648586,-757.22,0.00013987,3]
[330742602,1719750648596,-500.0,0.00013987,3]
[330742603,1719750648606,-500.0,0.00013987,3]
[330742604,1719750648617,-500.0,0.00013987,3]
[330742605,1719750648627,-500.0,0.00013987,3]
[330742606,1719750648636,-857.92,0.00013987,3]
[330742607,1719750648645,-500.0,0.00013987,3]
[330742608,1719750648654,-500.0,0.00013987,3]
[330742609,1719750648664,-500.0,0.00013987,3]
[330742610,1719750648673,-500.0,0.00013987,3]
[330742611,1719750648683,-500.0,0.00013987,3]
[330742612,1719750648695,-500.0,0.00013987,3]
[330742613,1719750648705,-500.0,0.00013987,3]
[330742614,1719750648715,-495.0,0.00013987,3]
[330742615,1719750648724,-500.0,0.00013987,3]
[330742616,1719750648734,-500.0,0.00013987,3]
[330742617,1719750648743,-500.0,0.00013987,3]
[330742618,1719750648753,-500.0,0.00013987,3]
[330742619,1719750648762,-500.0,0.00013987,3]
[330742620,1719750648772,-500.0,0.00013987,3]
[330742621,1719750648781,-500.0,0.00013987,3]
[330742622,1719750648790,-655.23,0.00013987,3]
[330742623,1719750648800,-500.0,0.00013987,3]
[330742624,1719750648814,-354.35898089,0.00013987,3]
[330742625,1719750648824,-500.0,0.00013987,3]
[330742626,1719750648833,-500.0,0.00013987,3]
[330742627,1719750648842,-500.0,0.00013987,3]
[330742628,1719750648853,-501.79,0.00013987,3]
[330742629,1719750648863,-500.0,0.00013987,3]
[330742630,1719750648872,-564.85,0.00013987,3]
[330742631,1719750648882,-500.0,0.00013987,3]
[330742632,1719750648893,-500.0,0.00013987,3]
[330742633,1719750648903,-596.62,0.00013987,3]
[330742634,1719750648913,-500.0,0.00013987,3]
[330742635,1719750648923,-500.0,0.00013987,3]
[330742636,1719750648932,-500.0,0.00013987,3]
[330742637,1719750648941,-500.0,0.00013987,3]
[330742638,1719750648950,-500.0,0.00013987,3]
[330742639,1719750648959,-689.49,0.00013987,3]
[330742640,1719750648970,-500.0,0.00013987,3]
[330742641,1719750648979,-500.0,0.00013987,3]
[330742642,1719750648989,-500.0,0.00013987,3]
[330742643,1719750648999,-500.0,0.00013987,3]
[330742644,1719750649008,-500.0,0.00013987,3]
[330742645,1719750649018,-500.0,0.00013987,3]
[330742646,1719750649027,-500.0,0.00013987,3]
[330742647,1719750649037,-500.0,0.00013987,3]
[330742648,1719750649046,-500.0,0.00013987,3]
[330742649,1719750649055,-500.0,0.00013987,3]
[330742650,1719750649064,-500.0,0.00013987,3]
[330742651,1719750649073,-500.0,0.00013987,3]
[330742652,1719750649083,-500.0,0.00013987,3]
[330742653,1719750649092,-706.75,0.00013987,3]
[330742654,1719750649102,-500.0,0.00013987,3]
[330742655,1719750649112,-500.0,0.00013987,3]
[330742656,1719750649122,-500.0,0.00013987,3]
[330742657,1719750649132,-652.82,0.00013987,3]
[330742658,1719750649141,-1001.86,0.00013987,3]
[330742659,1719750649150,-500.0,0.00013987,3]
[330742660,1719750649160,-580.64,0.00013987,3]
[330742661,1719750649169,-500.0,0.00013987,3]
[330742662,1719750649178,-500.0,0.00013987,3]
[330742663,1719750649188,-500.0,0.00013987,3]
[330742664,1719750649197,-500.0,0.00013987,3]
[330742665,1719750649206,-500.0,0.00013987,3]
[330742666,1719750649215,-500.0,0.00013987,3]
[330742667,1719750649226,-500.0,0.00013987,3]
[330742668,1719750649238,-500.0,0.00013987,3]
[330742669,1719750649250,-763.7,0.00013987,3]
[330742670,1719750649259,-500.0,0.00013987,3]
[330742671,1719750649269,-500.0,0.00013987,3]
[330742672,1719750649278,-500.0,0.00013987,3]
[330742673,1719750649287,-500.0,0.00013987,3]
[330742674,1719750649297,-500.0,0.00013987,3]
[330742675,1719750649306,-500.0,0.00013987,3]
[330742676,1719750649316,-500.0,0.00013987,3]
[330742677,1719750649325,-500.0,0.00013987,3]
[330742678,1719750649334,-531.58,0.00013987,3]
[330742679,1719750649343,-500.0,0.00013987,3]
[330742680,1719750649352,-500.0,0.00013987,3]
[330742681,1719750649362,-500.0,0.00013987,3]
[330742682,1719750649371,-500.0,0.00013987,3]
[330742683,1719750649380,-519.36,0.00013987,3]
[330742684,1719750649389,-500.0,0.00013987,3]
[330742685,1719750649398,-500.0,0.00013987,3]
[330742686,1719750649408,-500.0,0.00013987,3]
[330742687,1719750649417,-500.0,0.00013987,3]
[330742688,1719750649428,-500.0,0.00013987,3]
[330742689,1719750649438,-500.0,0.00013987,3]
[330742690,1719750649449,-500.0,0.00013987,3]
[330742691,1719750649460,-500.0,0.00013987,3]
[330742692,1719750649471,-500.0,0.00013987,3]
[330742693,1719750649480,-500.0,0.00013987,3]
[330742694,1719750649489,-500.0,0.00013987,3]
[330742695,1719750649498,-500.0,0.00013987,3]
[330742696,1719750649507,-500.0,0.00013987,3]
[330742697,1719750649518,-500.0,0.00013987,3]
[330742698,1719750649528,-448.97,0.00013987,3]
[330742699,1719750649537,-500.0,0.00013987,3]
[330742700,1719750649546,-500.0,0.00013987,3]
[330742701,1719750649555,-500.0,0.00013987,3]
[330742702,1719750649566,-511.25,0.00013987,3]
[330742703,1719750649575,-500.0,0.00013987,3]
[330742704,1719750649585,-500.0,0.00013987,3]
[330742705,1719750649594,-1482.07,0.00013987,3]
[330742706,1719750649603,-500.0,0.00013987,3]
[330742707,1719750649612,-500.0,0.00013987,3]
[330742708,1719750649621,-687.14,0.00013987,3]
[330742709,1719750649631,-500.0,0.00013987,3]
[330742710,1719750649640,-500.0,0.00013987,3]
[330742711,1719750649650,-500.0,0.00013987,3]
[330742712,1719750649660,-500.0,0.00013987,3]
[330742713,1719750649669,-500.0,0.00013987,3]
[330742714,1719750649678,-500.0,0.00013987,3]
[330742715,1719750649687,-500.0,0.00013987,3]
[330742716,1719750649696,-500.0,0.00013987,3]
[330742717,1719750649704,-500.0,0.00013987,3]
[330742718,1719750649714,-500.0,0.00013987,3]
[330742719,1719750649724,-691.11,0.00013987,3]
[330742720,1719750649733,-539.24,0.00013987,3]
[330742721,1719750649742,-566.54,0.00013987,3]
[330742722,1719750649751,-500.0,0.00013987,3]
[330742723,1719750649760,-500.0,0.00013987,3]
[330742724,1719750649769,-500.0,0.00013987,3]
[330742725,1719750649779,-500.0,0.00013987,2]
[330742726,1719750649787,-500.0,0.00013987,3]
[330742727,1719750649797,-500.0,0.00013987,3]
[330742728,1719750649806,-602.24,0.00013987,3]
[330742729,1719750649820,-500.0,0.00013987,3]
[330742730,1719750649829,-594.95,0.00013987,3]
[330742731,1719750649839,-500.0,0.00013987,3]
[330742732,1719750649848,-500.0,0.00013987,3]
[330742733,1719750649857,-500.0,0.00013987,3]
[330742734,1719750649866,-500.0,0.00013987,3]
[330742735,1719750649875,-500.0,0.00013987,3]
[330742736,1719750649883,-500.0,0.00013987,3]
[330742737,1719750649892,-500.0,0.00013987,3]
[330742738,1719750649901,-1288.55,0.00013987,3]
[330742739,1719750649911,-500.0,0.00013987,3]
[330742740,1719750649921,-500.0,0.00013987,3]
[330742741,1719750649932,-500.0,0.00013987,3]
[330742742,1719750649942,-528.89,0.00013987,3]
[330742743,1719750649953,-500.0,0.00013987,3]
[330742744,1719750649963,-500.0,0.00013987,3]
[330742745,1719750649973,-500.0,0.00013987,3]
[330742746,1719750649982,-592.74,0.00013987,3]
[330742747,1719750649991,-500.0,0.00013987,3]
[330742748,1719750650000,-513.87,0.00013987,3]
[330742749,1719750650010,-500.0,0.00013987,3]
[330742750,1719750650021,-500.0,0.00013987,3]
[330742751,1719750650029,-500.0,0.00013987,3]
[330742752,1719750650039,-500.0,0.00013987,3]
[330742753,1719750650048,-500.0,0.00013987,3]
[330742754,1719750650057,-500.0,0.00013987,3]
[330742755,1719750650067,-305.51928882,0.00013987,3]
[330742756,1719750650077,-500.0,0.00013987,3]
[330742757,1719750650086,-500.0,0.00013987,3]
[330742758,1719750650096,-500.0,0.00013987,3]
[330742759,1719750650105,-500.0,0.00013987,3]
[330742760,1719750650115,-500.0,0.00013987,3]
[330742761,1719750650124,-685.91,0.00013987,3]
[330742762,1719750650134,-500.0,0.00013987,3]
[330742763,1719750650143,-500.0,0.00013987,3]
[330742764,1719750650152,-500.0,0.00013987,3]
[330742765,1719750650162,-500.0,0.00013987,3]
[330742766,1719750650171,-500.0,0.00013987,3]
[330742767,1719750650180,-500.0,0.00013987,3]
[330742768,1719750650189,-500.0,0.00013987,3]
[330742769,1719750650199,-500.0,0.00013987,3]
[330742770,1719750650208,-500.0,0.00013987,3]
[330742771,1719750650219,-500.0,0.00013987,3]
[330742772,1719750650229,-500.0,0.00013987,3]
[330742773,1719750650240,-500.0,0.00013987,3]
[330742774,1719750650249,-500.0,0.00013987,3]
[330742775,1719750650258,-827.9,0.00013987,3]
[330742776,1719750650267,-500.0,0.00013987,3]
[330742777,1719750650276,-500.0,0.00013987,3]
[330742778,1719750650286,-500.0,0.00013987,3]
[330742779,1719750650295,-500.0,0.00013987,3]
[330742780,1719750650304,-1528.22,0.00013987,3]
[330742781,1719750650314,-500.0,0.00013987,3]
[330742782,1719750650323,-500.0,0.00013987,3]
[330742783,1719750650332,-500.0,0.00013987,3]
[330742784,1719750650342,-500.0,0.00013987,3]
[330742785,1719750650351,-669.45,0.00013987,3]
[330742786,1719750650361,-500.0,0.00013987,3]
[330742787,1719750650370,-603.66,0.00013987,3]
[330742788,1719750650379,-500.0,0.00013987,3]
[330742789,1719750650388,-500.0,0.00013987,3]
[330742790,1719750650398,-529.67,0.00013987,3]
[330742791,1719750650408,-500.0,0.00013987,3]
[330742792,1719750650419,-500.0,0.00013987,3]
[330742793,1719750650429,-583.58,0.00013987,3]
[330742794,1719750650438,-174.76416583,0.00013987,3]
[330742795,1719750650447,-500.0,0.00013987,3]
[330742796,1719750650457,-1049.93,0.00013987,3]
[330742797,1719750650466,-500.0,0.00013987,3]
[330742798,1719750650476,-500.0,0.00013987,3]
[330742799,1719750650485,-500.0,0.00013987,3]
[330742800,1719750650495,-500.0,0.00013987,3]
[330742801,1719750650505,-500.0,0.00013987,3]
[330742802,1719750650514,-500.0,0.00013987,3]
[330742803,1719750650525,-581.28,0.00013987,3]
[330742804,1719750650535,-500.0,0.00013987,3]
[330742805,1719750650544,-500.0,0.00013987,3]
[330742806,1719750650553,-500.0,0.00013987,3]
[330742807,1719750650563,-555.57,0.00013987,3]
[330742808,1719750650572,-500.0,0.00013987,3]
[330742809,1719750650580,-533.86,0.00013987,3]
[330742810,1719750650590,-591.37,0.00013987,3]
[330742811,1719750650600,-500.0,0.00013987,3]
[330742812,1719750650610,-500.0,0.00013987,3]
[330742813,1719750650619,-500.0,0.00013987,3]
[330742814,1719750650628,-500.0,0.00013987,3]
[330742815,1719750650637,-997.21,0.00013987,3]
[330742816,1719750650647,-500.0,0.00013987,3]
[330742817,1719750650656,-500.0,0.00013987,3]
[330742818,1719750650666,-500.0,0.00013987,3]
[330742819,1719750650676,-500.0,0.00013987,3]
[330742820,1719750650686,-603.75,0.00013987,3]
[330742821,1719750650695,-592.5,0.00013987,3]
[330742822,1719750650704,-500.0,0.00013987,3]
[330742823,1719750650713,-500.0,0.00013987,3]
[330742824,1719750650722,-500.0,0.00013987,3]
[330742825,1719750650731,-592.45,0.00013987,3]
[330742826,1719750650740,-500.0,0.00013987,3]
[330742827,1719750650750,-668.36,0.00013987,3]
[330742828,1719750650759,-500.0,0.00013987,3]
[330742829,1719750650768,-500.0,0.00013987,3]
[330742830,1719750650777,-1787.78,0.00013987,3]
[330742831,1719750650787,-500.0,0.00013987,3]
[330742832,1719750650797,-500.0,0.00013987,3]
[330742833,1719750650809,-500.0,0.00013987,3]
[330742834,1719750650822,-500.0,0.00013987,3]
[330742835,1719750650833,-500.0,0.00013987,3]
[330742836,1719750650842,-500.0,0.00013987,3]
[330742837,1719750650853,-500.0,0.00013987,3]
[330742838,1719750650863,-500.0,0.00013987,3]